fUST/lending_fUST_20250801
["ID","MTS","AMOUNT","RATE_DAILY","PERIOD"]
[376564801,1754025047666,-502.53559488,0.00022312,2]
[376564802,1754025047675,-502.53559488,0.00022312,2]
[376564803,1754025047684,-502.53559488,0.00022312,2]
[376564804,1754025047694,-502.53559488,0.00022312,2]
[376564805,1754025047703,-502.53559488,0.00022312,2]
[376564806,1754025047712,-502.53559488,0.00022312,2]
[376564807,1754025047722,-502.53559488,0.00022312,2]
[376564808,1754025047731,-502.53559488,0.00022312,2]
[376564809,1754025047740,-426.048569,0.00023,7]
[376564810,1754025047750,-426.048569,0.00023409,7]
[376564811,1754025047759,-1679.03076172,0.00023784,2]
[376564812,1754025047769,-341.90803835,0.0002379,7]
[376564813,1754025047778,-516.86,0.0002379,7]
[376564814,1754025047787,-212.2,0.00023791,5]
[376564815,1754025047796,-154.994934,0.00023812,5]
[376564816,1754025047806,-929.34,0.00023818,2]
[376564817,1754025047814,-570.94,0.00023835,7]
[376564818,1754025047822,-564.65,0.00023842,7]
[376564819,1754025047831,-168.17756401,0.00023863,2]
[376564820,1754025047840,-222.706,0.0002388,2]
[376564821,1754025047848,-150.107,0.0002388,2]
[376564822,1754025047858,-516.86,0.0002389,7]
[376564823,1754025047867,-168.56846842,0.0002389,2]
[376564824,1754025047876,-406.19500466,0.000239,2]
[376564825,1754025047885,-150.156,0.00023902,2]
[376564826,1754025047895,-150.0,0.00023902,2]
[376564827,1754025047904,-554.36046659,0.00023902,2]
[376564828,1754025048007,-1604.63953341,0.00023902,2]
[376564829,1754025048017,-970.0,0.00023902,2]
[376564830,1754025048028,-1922.81,0.00023925,2]
[376564831,1754025048037,-460.0,0.00023925,2]
[376564832,1754025048047,-681.07,0.00023925,2]
[376564833,1754025048057,-583.0,0.00023929,2]
[376564834,1754025048067,-564.65,0.00023942,7]
[376564835,1754025048077,-270.35604069,0.00023955,2]
[376564836,1754025048088,-746.48395931,0.00023955,2]
[376564837,1754025048098,-1020.33,0.00023955,2]
[376564838,1754025048108,-1560.02,0.00023955,2]
[376564839,1754025048117,-651.84,0.00023955,2]
[376564840,1754025048127,-660.87,0.00023955,2]
[376564841,1754025048136,-957.08,0.00023955,2]
[376564842,1754025048146,-941.98,0.00023956,2]
[376564843,1754025048155,-226.126172,0.00023956,7]
[376564844,1754025048164,-697.67,0.00023956,2]
[376564845,1754025048173,-151.0,0.00023956,7]
[376564846,1754025048183,-415.842854,0.00023956,7]
[376564847,1754025048192,-415.842854,0.00023956,7]
[376564848,1754025048202,-656.95,0.00023957,2]
[376564849,1754025048211,-478.5,0.00023957,2]
[376564850,1754025048220,-460.0,0.00023957,2]
[376564851,1754025048229,-766.98,0.00023959,2]
[376564852,1754025048239,-516.88,0.0002399,7]
[376564853,1754025048248,-154.994934,0.00023998,4]
[376564854,1754025048257,-10164.6141054,0.00024,2]
[376564857,1754025074300,200.0,0.000263,120]
[376564858,1754025074324,200.0,0.000263,120]
[376564859,1754025074346,200.0,0.000263,120]
[376564860,1754025074370,1613.793013,0.000263,120]
[376564861,1754025095682,150.11385048,0.00013699,2]
[376564862,1754025095712,116.39948252,0.00013699,2]
[376564866,1754025721063,-15000.0,0.00019646,2]
[376564868,1754025841125,-1000.0,0.00018904,2]
[376564869,1754025841147,-208.029015,0.00019178,2]
[376564870,1754025841167,-236.62118816,0.00019214,2]
[376564871,1754025841190,-300.0,0.00019645,2]
[376564872,1754025841211,-8255.34979684,0.00019646,2]
[376564874,1754025919716,-1224.08087962,0.00019449,2]
[376564875,1754025919746,-1644.65020316,0.00019646,2]
[376564876,1754025919782,-194.1692009,0.00019797,2]
[376564877,1754025919816,-300.0,0.00019808,2]
[376564878,1754025919850,-552.07,0.00019808,2]
[376564879,1754025919878,-300.0,0.00019808,2]
[376564880,1754025919905,-3785.02971632,0.00019809,2]
[376564884,1754026027104,-3177.12284564,0.00019371,2]
[376564886,1754026068124,29599.23516139,0.00018,2]
[376564888,1754026075229,277.059786,0.00013699,2]
[376564892,1754026113503,1265.07201991,0.00018,2]
[376564893,1754026114666,576.21536189,0.00018,2]
[376564899,1754026148169,-237.48839467,0.000189,2]
[376564900,1754026148189,-5821.63718556,0.00019371,2]
[376564901,1754026148210,-512.93983497,0.00019709,2]
[376564902,1754026148230,-300.0,0.00019807,2]
[376564903,1754026148254,-460.0,0.00019808,2]
[376564904,1754026148276,-462.52814049,0.00019808,2]
[376564905,1754026148299,-460.0,0.00019808,2]
[376564906,1754026148322,-1250.51,0.00019808,2]
[376564907,1754026148473,-460.0,0.00019808,2]
[376564908,1754026148497,-460.0,0.00019808,2]
[376564909,1754026148518,-460.0,0.00019808,2]
[376564910,1754026148542,-948.33,0.00019808,2]
[376564911,1754026148563,-473.6782629,0.00019808,2]
[376564912,1754026148586,-490.12,0.00019808,2]
[376564913,1754026148611,-460.0,0.00019808,2]
[376564914,1754026148634,-610.08,0.00019808,2]
[376564915,1754026148656,-460.0,0.00019808,2]
[376564916,1754026148677,-493.06,0.00019808,2]
[376564917,1754026148700,-460.0,0.00019808,2]
[376564918,1754026148722,-460.0,0.00019808,2]
[376564919,1754026148743,-460.0,0.00019808,2]
[376564920,1754026148764,-1233.8754505,0.00019809,2]
[376564921,1754026149140,-5033.09326152,0.00019809,2]
[376564922,1754026153084,-460.0,0.00019808,2]
[376564923,1754026153105,-2747.8438,0.00019809,2]
[376564924,1754026158108,-411.6,0.00019809,2]
[376564925,1754026159119,-18867.67743532,0.00019809,2]
[376564972,1754026231936,-364.39309849,0.00019808,2]
[376564974,1754026231948,-95.60690151,0.00019808,2]
[376564976,1754026231958,-460.0,0.00019808,2]
[376564977,1754026231967,-460.0,0.00019808,2]
[376564978,1754026231976,-139.69309849,0.00019808,2]
[376564979,1754026232001,-334.06690151,0.00019808,2]
[376564980,1754026232011,-460.0,0.00019808,2]
[376564981,1754026232020,-460.0,0.00019808,2]
[376564982,1754026232029,-1228.27,0.00019808,2]
[376564983,1754026232040,-1345.60017094,0.00019809,2]
[376564984,1754026232050,-1965.11123471,0.00019999,2]
[376564985,1754026232059,-230.42249935,0.00019999,2]
[376564997,1754026237902,-69.57750065,0.00019999,2]
[376564998,1754026237912,-460.0,0.00019999,2]
[376564999,1754026237924,-533.85757812,0.00019999,2]
[376565000,1754026237934,-460.0,0.00019999,2]
[376565001,1754026237944,-314.76400147,0.00019999,2]
[376565002,1754026237954,-460.0,0.00019999,2]
[376565003,1754026237963,-198.73,0.0002,7]
[376565004,1754026237973,-21029.80014853,0.0002,2]
[376565005,1754026237983,-22376.15346113,0.0002,2]
[376565006,1754026237992,-1299.46679048,0.0002,2]
[376565007,1754026238002,-258.55380868,0.00020047,2]
[376565008,1754026238013,-460.0,0.00020082,2]
[376565009,1754026238022,-460.0,0.00020082,2]
[376565010,1754026238031,-460.0,0.00020082,2]
[376565011,1754026238041,-948.33,0.00020082,2]
[376565012,1754026238051,-490.12,0.00020082,2]
[376565013,1754026238061,-157.21,0.00020082,2]
[376565014,1754026238071,-610.08,0.00020082,2]
[376565015,1754026238081,-460.0,0.00020082,2]
[376565016,1754026238090,-460.0,0.00020082,2]
[376565017,1754026238100,-527.7,0.00020082,2]
[376565018,1754026238109,-460.0,0.00020082,2]
[376565019,1754026238119,-460.0,0.00020082,2]
[376565020,1754026238128,-1228.27,0.00020082,2]
[376565021,1754026238137,-277.059786,0.00020187,2]
[376565022,1754026238148,-200.0,0.00020203,15]
[376565023,1754026238157,-200.0,0.00020203,15]
[376565024,1754026238169,-200.0,0.00020203,15]
[376565025,1754026238178,-200.0,0.00020203,15]
[376565026,1754026238187,-200.0,0.00020203,15]
[376565027,1754026238197,-604.55,0.00020356,2]
[376565028,1754026238207,-948.33,0.00020356,2]
[376565029,1754026238216,-490.12,0.00020356,2]
[376565030,1754026238225,-507.13179531,0.00020356,2]
[376565031,1754026238238,-102.94820469,0.00020356,2]
[376565032,1754026238248,-460.0,0.00020356,2]
[376565033,1754026238258,-460.0,0.00020356,2]
[376565034,1754026238268,-460.0,0.00020356,2]
[376565035,1754026238277,-1228.27,0.00020356,2]
[376565036,1754026238286,-948.33,0.0002063,2]
[376565037,1754026238298,-490.12,0.0002063,2]
[376565038,1754026238309,-610.08,0.0002063,2]
[376565039,1754026238319,-460.0,0.0002063,2]
[376565040,1754026238330,-501.18,0.0002063,2]
[376565041,1754026238340,-460.0,0.0002063,2]
[376565042,1754026238350,-1228.27,0.0002063,2]
[376565043,1754026238359,-460.0,0.00020667,2]
[376565044,1754026238369,-460.0,0.00020667,2]
[376565045,1754026238379,-460.0,0.00020667,2]
[376565046,1754026238388,-460.0,0.00020667,2]
[376565047,1754026238397,-460.0,0.00020667,2]
[376565048,1754026238407,-451.00936525,0.00020667,2]
[376565049,1754026238417,-462.71704898,0.00020667,2]
[376565050,1754026238426,-460.0,0.00020667,2]
[376565051,1754026238436,-460.0,0.00020667,2]
[376565052,1754026238445,-460.0,0.00020667,2]
[376565053,1754026238454,-460.0,0.00020667,2]
[376565054,1754026238463,-460.0,0.00020667,2]
[376565055,1754026238472,-1343.44,0.00020667,2]
[376565056,1754026238481,-460.0,0.00020667,2]
[376565057,1754026238491,-175.79744278,0.00020668,2]
[376565058,1754026238499,-460.0,0.00020668,2]
[376565059,1754026238508,-464.22025295,0.00020668,2]
[376565060,1754026238518,-460.0,0.00020668,2]
[376565061,1754026238527,-554.78948645,0.00020668,2]
[376565062,1754026238536,-460.0,0.00020668,2]
[376565063,1754026238546,-460.0,0.00020668,2]
[376565064,1754026238555,-849.68,0.00020668,2]
[376565065,1754026238564,-152.27652446,0.00020669,2]
[376565066,1754026238573,-460.0,0.00020669,2]
[376565067,1754026238583,-460.0,0.00020669,2]
[376565068,1754026238593,-460.0,0.00020669,2]
[376565069,1754026238603,-460.0,0.00020669,2]
[376565070,1754026238612,-460.0,0.00020669,2]
[376565071,1754026238622,-460.0,0.00020669,2]
[376565072,1754026238631,-460.0,0.00020669,2]
[376565073,1754026238641,-460.0,0.00020669,2]
[376565074,1754026238651,-460.0,0.00020669,2]
[376565075,1754026238661,-460.0,0.00020669,2]
[376565076,1754026238670,-565.24,0.00020669,2]
[376565077,1754026238679,-460.0,0.00020669,2]
[376565078,1754026238689,-460.0,0.00020669,2]
[376565079,1754026238698,-460.0,0.00020669,2]
[376565080,1754026238708,-460.0,0.00020669,2]
[376565081,1754026238718,-460.0,0.00020669,2]
[376565082,1754026238728,-460.0,0.00020669,2]
[376565083,1754026238738,-460.0,0.00020669,2]
[376565084,1754026238747,-460.0,0.00020669,2]
[376565085,1754026238756,-460.0,0.00020669,2]
[376565086,1754026238765,-1070.35,0.00020669,2]
[376565087,1754026238775,-460.0,0.00020669,2]
[376565088,1754026238785,-181.28167444,0.00020669,2]
[376565089,1754026238809,-332.18832556,0.00020669,2]
[376565090,1754026238818,-297.60990184,0.00020669,2]
[376565091,1754026238853,-162.39009816,0.00020669,2]
[376565092,1754026238863,-460.0,0.00020669,2]
[376565093,1754026238872,-356.64976354,0.00020669,2]
[376565094,1754026238884,-103.35023646,0.00020669,2]
[376565095,1754026238894,-460.0,0.00020669,2]
[376565096,1754026238904,-460.0,0.00020669,2]
[376565097,1754026238915,-460.0,0.00020669,2]
[376565098,1754026238925,-460.0,0.00020669,2]
[376565099,1754026238935,-460.0,0.00020669,2]
[376565100,1754026238945,-460.0,0.00020669,2]
[376565101,1754026238955,-460.0,0.00020669,2]
[376565102,1754026238964,-172.28127547,0.00020669,2]
[376565103,1754026238976,-340.77872453,0.00020669,2]
[376565104,1754026238985,-460.0,0.00020669,2]
[376565105,1754026238995,-460.0,0.00020669,2]
[376565106,1754026239004,-460.0,0.00020669,2]
[376565107,1754026239013,-340.79497583,0.00020669,2]
[376565108,1754026239025,-122.38502417,0.00020669,2]
[376565109,1754026239035,-689.94673237,0.00020669,2]
[376565110,1754026239046,-147.58326763,0.00020669,2]
[376565111,1754026239056,-461.63833674,0.00020669,2]
[376565112,1754026239065,-442.11334676,0.00020669,2]
[376565114,1754026239967,-17.88665324,0.00020669,2]
[376565115,1754026239977,-460.0,0.00020669,2]
[376565116,1754026239987,-132.33049738,0.00020669,2]
[376565117,1754026240029,-327.66950262,0.00020669,2]
[376565118,1754026240039,-103.67517646,0.00020669,2]
[376565119,1754026240050,-356.32482354,0.00020669,2]
[376565120,1754026240060,-26.78717646,0.00020669,2]
[376565121,1754026240072,-514.88282354,0.00020669,2]
[376565122,1754026240082,-460.0,0.00020669,2]
[376565123,1754026240092,-460.0,0.00020669,2]
[376565124,1754026240102,-460.0,0.00020669,2]
[376565126,1754026240111,-466.3,0.00020669,2]
[376565128,1754026240120,-460.0,0.00020669,2]
[376565130,1754026240129,-460.0,0.00020669,2]
[376565132,1754026240139,-460.0,0.00020669,2]
[376565134,1754026240148,-460.0,0.00020669,2]
[376565136,1754026240158,-460.0,0.00020669,2]
[376565138,1754026240178,-460.0,0.00020669,2]
[376565140,1754026240187,-460.0,0.00020669,2]
[376565142,1754026240196,-460.0,0.00020669,2]
[376565144,1754026240206,-418.32970844,0.00020669,2]
[376565146,1754026240215,-460.0,0.00020669,2]
[376565148,1754026240224,-482.84,0.00020669,2]
[376565150,1754026240233,-500.0,0.00020673,2]
[376565152,1754026240243,-512.93983495,0.00020676,2]
[376565154,1754026240252,-460.0,0.00020843,2]
[376565156,1754026240260,-546.31,0.00020843,2]
[376565158,1754026240269,-948.33,0.00020904,2]
[376565160,1754026240279,-490.12,0.00020904,2]
[376565162,1754026240288,-610.08,0.00020904,2]
[376565164,1754026240299,-460.0,0.00020904,2]
[376565166,1754026240308,-1228.27,0.00020904,2]
[376565168,1754026240317,-999.0,0.00020939,2]
[376565170,1754026240326,-461.90135846,0.0002094,2]
[376565172,1754026240335,-460.0,0.0002094,2]
[376565174,1754026240344,-255.89676102,0.0002094,2]
[376565176,1754026240353,-160.28205596,0.0002094,2]
[376565178,1754026240363,-460.0,0.0002094,2]
[376565180,1754026240372,-461.13989761,0.0002094,2]
[376565182,1754026240381,-460.0,0.0002094,2]
[376565184,1754026240390,-460.0,0.0002094,2]
[376565187,1754026240400,-461.05198873,0.0002094,2]
[376565189,1754026240410,-460.0,0.0002094,2]
[376565191,1754026240421,-449.96583,0.0002094,2]
[376565193,1754026240431,-460.0,0.0002094,2]
[376565195,1754026240440,-460.0,0.0002094,2]
[376565197,1754026240450,-544.08654953,0.0002094,2]
[376565199,1754026240460,-461.29864576,0.0002094,2]
[376565201,1754026240469,-462.35695127,0.0002094,2]
[376565203,1754026240478,-595.6,0.0002094,2]
[376565205,1754026240487,-460.0,0.0002094,2]
[376565207,1754026240496,-260.17291665,0.0002094,2]
[376565209,1754026240506,-460.0,0.0002094,2]
[376565211,1754026240515,-462.94460664,0.0002094,2]
[376565213,1754026240525,-460.0,0.0002094,2]
[376565215,1754026240534,-460.0,0.0002094,2]
[376565217,1754026240544,-578.37686078,0.0002094,2]
[376565219,1754026240554,-460.0,0.0002094,2]
[376565221,1754026240563,-460.0,0.0002094,2]
[376565222,1754026240572,-694.02,0.0002094,2]
[376565223,1754026240581,-460.0,0.0002094,2]
[376565225,1754026240591,-348.94266463,0.0002094,2]
[376565227,1754026240600,-460.0,0.0002094,2]
[376565229,1754026240609,-460.0,0.0002094,2]
[376565231,1754026240620,-403.2328136,0.0002094,2]
[376565233,1754026240630,-460.0,0.0002094,2]
[376565235,1754026240639,-460.0,0.0002094,2]
[376565237,1754026240648,-460.0,0.0002094,2]
[376565239,1754026240657,-460.0,0.0002094,2]
[376565241,1754026240668,-460.0,0.0002094,2]
[376565243,1754026240677,-460.0,0.0002094,2]
[376565245,1754026240686,-460.0,0.0002094,2]
[376565247,1754026240696,-460.0,0.0002094,2]
[376565250,1754026240715,-460.0,0.0002094,2]
[376565252,1754026240725,-460.0,0.00020941,2]
[376565254,1754026240735,-460.0,0.00020941,2]
[376565256,1754026240745,-460.0,0.00020941,2]
[376565258,1754026240754,-1343.44,0.00020941,2]
[376565260,1754026240764,-460.0,0.00020941,2]
[376565262,1754026240774,-460.0,0.00020942,2]
[376565264,1754026240783,-849.68,0.00020942,2]
[376565267,1754026240793,-460.0,0.00020943,2]
[376565269,1754026240802,-460.0,0.00020943,2]
[376565271,1754026240812,-511.51,0.00020943,2]
[376565273,1754026240821,-460.0,0.00020943,2]
[376565275,1754026240831,-460.0,0.00020943,2]
[376565277,1754026240841,-384.11,0.00020943,2]
[376565279,1754026240853,-179.67,0.00020943,2]
[376565281,1754026240863,-1070.35,0.00020943,2]
[376565283,1754026240872,-366.25,0.00020943,2]
[376565285,1754026240883,-472.3,0.00020943,2]
[376565287,1754026240894,-512.28,0.00020943,2]
[376565289,1754026240903,-460.0,0.00020943,2]
[376565291,1754026240913,-460.0,0.00020943,2]
[376565293,1754026240926,-460.0,0.00020943,2]
[376565295,1754026240935,-513.06,0.00020943,2]
[376565297,1754026240945,-542.12,0.00020943,2]
[376565299,1754026240954,-529.01,0.00020943,2]
[376565301,1754026240964,-460.0,0.00020943,2]
[376565303,1754026240974,-463.18,0.00020943,2]
[376565305,1754026240984,-837.53,0.00020943,2]
[376565307,1754026240993,-460.0,0.00020943,2]
[376565309,1754026241003,-460.0,0.00020943,2]
[376565311,1754026241012,-157.28,0.00020943,2]
[376565313,1754026241022,-460.0,0.00020943,2]
[376565315,1754026241031,-530.41,0.00020943,2]
[376565317,1754026241041,-281.23,0.00020943,2]
[376565319,1754026241050,-460.0,0.00020943,2]
[376565321,1754026241059,-460.0,0.00020943,2]
[376565323,1754026241069,-460.0,0.00020943,2]
[376565325,1754026241078,-460.0,0.00020943,2]
[376565327,1754026241087,-460.0,0.00021117,2]
[376565329,1754026241096,-546.31,0.00021117,2]
[376565331,1754026241106,-948.33,0.00021178,2]
[376565333,1754026241115,-490.12,0.00021178,2]
[376565335,1754026241124,-610.08,0.00021178,2]
[376565337,1754026241133,-460.0,0.00021178,2]
[376565339,1754026241142,-1228.27,0.00021178,2]
[376565341,1754026241152,-176.46,0.00021214,2]
[376565356,1754026241161,-170.11,0.00021214,2]
[376565359,1754026241301,-316.16200497,0.00021214,2]
[376565361,1754026241310,-694.02,0.00021214,2]
[376565363,1754026241320,-460.0,0.00021214,2]
[376565365,1754026241328,-460.0,0.00021214,2]
[376565367,1754026241338,-356.21929665,0.00021214,2]
[376565369,1754026241347,-310.93665133,0.00021214,2]
[376565371,1754026241356,-460.0,0.00021214,2]
[376565373,1754026241366,-460.0,0.00021215,2]
[376565375,1754026241375,-460.0,0.00021215,2]
[376565377,1754026241384,-542.92,0.00021215,2]
[376565379,1754026241393,-1343.44,0.00021215,2]
[376565381,1754026241402,-460.0,0.00021215,2]
[376565383,1754026241411,-460.0,0.00021216,2]
[376565385,1754026241423,-849.68,0.00021216,2]
[376565387,1754026241432,-460.0,0.00021217,2]
[376565389,1754026241441,-460.0,0.00021217,2]
[376565391,1754026241450,-391.49,0.00021217,2]
[376565393,1754026241459,-1070.35,0.00021217,2]
[376565395,1754026241469,-460.0,0.00021217,2]
[376565397,1754026241478,-460.0,0.00021217,2]
[376565399,1754026241489,-513.06,0.00021217,2]
[376565401,1754026241498,-162.48,0.00021217,2]
[376565403,1754026241507,-463.18,0.00021217,2]
[376565405,1754026241516,-837.53,0.00021217,2]
[376565407,1754026241526,-530.02,0.00021217,2]
[376565409,1754026241536,-338.29,0.00021217,2]
[376565411,1754026241546,-253.24,0.00021217,2]
[376565413,1754026241555,-460.0,0.00021217,2]
[376565415,1754026241564,-460.0,0.00021217,2]
[376565417,1754026241573,-460.0,0.00021217,2]
[376565419,1754026241582,-460.0,0.00021217,2]
[376565421,1754026241591,-500.0,0.00021221,2]
[376565423,1754026241600,-500.0,0.00021363,2]
[376565425,1754026241610,-460.0,0.00021391,2]
[376565427,1754026241619,-546.31,0.00021391,2]
[376565429,1754026241629,-948.33,0.00021452,2]
[376565431,1754026241638,-490.12,0.00021452,2]
[376565433,1754026241647,-610.08,0.00021452,2]
[376565435,1754026241656,-347.293521,0.00021452,2]
[376565437,1754026241667,-1228.27,0.00021452,2]
[376565439,1754026241677,-694.02,0.00021488,2]
[376565441,1754026241686,-460.0,0.00021488,2]
[376565443,1754026241695,-460.0,0.00021488,2]
[376565445,1754026241705,-460.0,0.00021489,2]
[376565447,1754026241714,-460.0,0.00021489,2]
[376565449,1754026241723,-1343.44,0.00021489,2]
[376565451,1754026241733,-460.0,0.00021489,2]
[376565453,1754026241743,-460.0,0.0002149,2]
[376565455,1754026241752,-849.68,0.0002149,2]
[376565457,1754026241762,-1070.35,0.00021491,2]
[376565459,1754026241771,-460.0,0.00021491,2]
[376565461,1754026241780,-605.06,0.00021491,2]
[376565463,1754026241789,-513.06,0.00021491,2]
[376565465,1754026241798,-463.18,0.00021491,2]
[376565467,1754026241807,-837.53,0.00021491,2]
[376565469,1754026241816,-543.62,0.00021491,2]
[376565471,1754026241826,-460.0,0.00021491,2]
[376565473,1754026241835,-460.0,0.00021491,2]
[376565475,1754026241846,-314.25,0.00021491,2]
[376565477,1754026241856,-189.1,0.00021636,4]
[376565479,1754026241865,-512.93983495,0.00021644,2]
[376565481,1754026241875,-175.63235898,0.00021665,2]
[376565483,1754026241884,-546.31,0.00021665,2]
[376565485,1754026241894,-948.33,0.00021726,2]
[376565487,1754026241903,-490.12,0.00021726,2]
[376565489,1754026241913,-610.08,0.00021726,2]
[376565491,1754026241924,-1228.27,0.00021726,2]
[376565493,1754026241934,-549.9,0.00021754,3]
[376565495,1754026241943,-460.0,0.00021762,2]
[376565497,1754026241953,-694.02,0.00021762,2]
[376565499,1754026241962,-460.0,0.00021762,2]
[376565501,1754026241972,-502.88347459,0.00021762,2]
[376565503,1754026241981,-400.17,0.00021763,2]
[376565505,1754026241991,-460.0,0.00021763,2]
[376565507,1754026242000,-1343.44,0.00021763,2]
[376565509,1754026242010,-460.0,0.00021763,2]
[376565511,1754026242019,-460.0,0.00021764,2]
[376565513,1754026242028,-849.68,0.00021764,2]
[376565515,1754026242037,-1070.35,0.00021765,2]
[376565517,1754026242046,-584.61,0.00021765,2]
[376565519,1754026242056,-513.06,0.00021765,2]
[376565521,1754026242064,-463.18,0.00021765,2]
[376565523,1754026242074,-837.53,0.00021765,2]
[376565525,1754026242083,-460.0,0.00021765,2]
[376565527,1754026242092,-276.74,0.00021765,2]
[376565529,1754026242101,-420.0,0.00021777,2]
[376565531,1754026242111,-316.53,0.00021795,2]
[376565533,1754026242120,-545.95134427,0.00021907,2]
[376565535,1754026242128,-200.0,0.00021918,2]
[376565537,1754026242137,-546.31,0.00021939,2]
[376565539,1754026242146,-948.33,0.00022,2]
[376565541,1754026242155,-490.12,0.00022,2]
[376565543,1754026242166,-610.08,0.00022,2]
[376565545,1754026242175,-162.0,0.00022,2]
[376565547,1754026242185,-1228.27,0.00022,2]
[376565549,1754026242194,-1334.08,0.00022,2]
[376565551,1754026242204,-694.02,0.00022036,2]
[376565553,1754026242213,-460.0,0.00022036,2]
[376565555,1754026242222,-460.0,0.00022037,2]
[376565557,1754026242231,-1343.44,0.00022037,2]
[376565559,1754026242240,-460.0,0.00022037,2]
[376565561,1754026242249,-460.0,0.00022038,2]
[376565564,1754026242259,-849.68,0.00022038,2]
[376565567,1754026242268,-1070.35,0.00022039,2]
[376565570,1754026242277,-513.06,0.00022039,2]
[376565572,1754026242286,-463.18,0.00022039,2]
[376565574,1754026242295,-837.53,0.00022039,2]
[376565576,1754026242304,-460.0,0.00022039,2]
[376565578,1754026242313,-189.1,0.0002208,4]
[376565581,1754026242322,-214.52821253,0.00022104,2]
[376565583,1754026242331,-12644.26590849,0.00022134,2]
[376565585,1754026242340,-216.22890603,0.00022134,2]
[376565587,1754026242349,-160.0,0.00022134,2]
[376565589,1754026242358,-526.925583,0.00022134,2]
[376565591,1754026242367,-200.0,0.00022181,15]
[376565593,1754026242377,-200.0,0.00022181,15]
[376565596,1754026242386,-200.0,0.00022181,15]
[376565598,1754026242395,-200.0,0.00022181,15]
[376565600,1754026242404,-200.0,0.00022181,15]
[376565603,1754026242413,-200.0,0.00022181,15]
[376565605,1754026242423,-200.0,0.00022181,15]
[376565607,1754026242432,-10171.04,0.000222,7]
[376565609,1754026242441,-546.31,0.00022213,2]
[376565611,1754026242450,-160.0,0.00022248,2]
[376565613,1754026242459,-948.33,0.00022274,2]
[376565615,1754026242469,-490.12,0.00022274,2]
[376565617,1754026242478,-610.08,0.00022274,2]
[376565619,1754026242487,-1228.27,0.00022274,2]
[376565621,1754026242496,-500.0,0.0002228,2]
[376565623,1754026242505,-694.02,0.0002231,2]
[376565625,1754026242515,-586.96621545,0.0002231,2]
[376565627,1754026242523,-460.0,0.00022311,2]
[376565629,1754026242532,-1343.44,0.00022311,2]
[376565631,1754026242541,-460.0,0.00022311,2]
[376565633,1754026242552,-460.0,0.00022312,2]
[376565635,1754026242564,-849.68,0.00022312,2]
[376565638,1754026242576,-1070.35,0.00022313,2]
[376565640,1754026242588,-513.06,0.00022313,2]
[376565642,1754026242600,-463.18,0.00022313,2]
[376565645,1754026242612,-837.53,0.00022313,2]
[376565647,1754026242623,-460.0,0.00022313,2]
[376565649,1754026242633,-500.0,0.00022327,2]
[376565651,1754026242643,-153.0,0.00022411,2]
[376565653,1754026242654,-153.0,0.00022411,2]
[376565655,1754026242666,-153.0,0.00022411,2]
[376565658,1754026242677,-153.0,0.00022411,2]
[376565660,1754026242687,-1033.3668513,0.00022411,2]